bitfinex/quotes_BTCUSD_20250711
["timestamp","ask_amount","ask_price","bid_price","bid_amount"]
[1752230792798,0.99215992,118120.0,118110.0,0.02186871]
[1752230793348,0.99215992,118120.0,118110.0,0.01976871]
[1752230793568,0.65215992,118120.0,118110.0,0.01977523]
[1752230797018,1.46910991,118120.0,118110.0,0.01683523]
[1752230797249,1.56529785,118120.0,118110.0,0.01683523]
[1752230797630,1.76910991,118120.0,118110.0,0.01683523]
[1752230797856,1.79451091,118120.0,118110.0,0.01683523]
[1752230798057,1.8190823,118120.0,118110.0,0.01683523]
[1752230798814,1.8190823,118120.0,118110.0,0.01583523]
[1752230799194,1.8200823,118120.0,118110.0,0.01583523]
[1752230799843,1.8210823,118120.0,118110.0,0.01583523]
[1752230801430,1.9101723,118120.0,118110.0,0.01583523]
[1752230801641,1.8210823,118120.0,118110.0,0.01583523]
[1752230801824,1.90651223,118120.0,118110.0,0.01583523]
[1752230803814,1.8210823,118120.0,118110.0,0.01583523]
[1752230806187,1.6920023,118120.0,118110.0,0.01583523]
[1752230806390,1.8210823,118120.0,118110.0,0.01583523]
[1752230815100,0.94578232,118120.0,118110.0,0.01583523]
[1752230815289,1.8210823,118120.0,118110.0,0.01583523]
[1752230817686,1.6920023,118120.0,118110.0,0.01583523]
[1752230817912,1.8210823,118120.0,118110.0,0.01583523]
[1752230818388,1.6920023,118120.0,118110.0,0.01583523]
[1752230818614,1.84337245,118120.0,118110.0,0.01583523]
[1752230819639,1.71429245,118120.0,118110.0,0.01583523]
[1752230819864,1.84337245,118120.0,118110.0,0.01583523]
[1752230821180,1.89337245,118120.0,118110.0,0.00737209]
[1752230821584,0.45077139,118110.0,118100.0,0.002]
[1752230821810,1.18832124,118110.0,118100.0,0.002]
[1752230822253,1.12634131,118110.0,118100.0,0.002]
[1752230822589,1.10176992,118110.0,118100.0,0.002]
[1752230823168,1.10276992,118110.0,118100.0,0.002]
[1752230826671,1.10476992,118110.0,118100.0,0.002]
[1752230833638,1.10476992,118110.0,118100.0,0.0178506]
[1752230833847,1.19019985,118110.0,118100.0,0.0178506]
[1752230836948,2.23070788,118110.0,118100.0,0.0178506]
[1752230838020,2.30527927,118110.0,118100.0,0.00938679]
[1752230838225,0.334,118090.0,118080.0,0.002]
[1752230838438,1.53390861,118090.0,118080.0,0.002]
[1752230839268,1.59600225,118090.0,118080.0,0.002]
[1752230839478,1.62095612,118090.0,118080.0,0.002]
[1752230839880,1.55886248,118090.0,118080.0,0.002]
[1752230840325,1.58427148,118090.0,118080.0,0.002]
[1752230840658,1.58627148,118090.0,118080.0,0.002]
[1752230840855,1.47707352,118090.0,118080.0,0.002]
[1752230841077,1.47707352,118090.0,118080.0,0.502]
[1752230841322,1.56250345,118090.0,118080.0,0.502]
[1752230841498,1.54490345,118090.0,118080.0,0.502]
[1752230843336,1.54590345,118090.0,118080.0,0.502]
[1752230843763,1.56280345,118090.0,118080.0,0.502]
[1752230845769,1.54590345,118090.0,118080.0,0.502]
[1752230848065,1.52950345,118090.0,118080.0,0.502]
[1752230848479,1.44407352,118090.0,118080.0,0.502]
[1752230850186,1.44407352,118090.0,118080.0,0.51783143]
[1752230850404,1.78407352,118090.0,118080.0,0.51783143]
[1752230855037,1.65503352,118090.0,118080.0,0.502]
[1752230855267,1.78407352,118090.0,118080.0,0.5052]
[1752230855935,1.78407352,118090.0,118080.0,0.502]
[1752230855936,1.86950345,118090.0,118080.0,0.502]
[1752230856914,1.86946345,118090.0,118080.0,0.502]
[1752230857441,1.78403352,118090.0,118080.0,0.502]
[1752230857615,1.78403352,118090.0,118080.0,0.5052]
[1752230857826,1.65503352,118090.0,118080.0,0.5052]
[1752230858030,1.78403352,118090.0,118080.0,0.52521]
[1752230861248,1.86946345,118090.0,118080.0,0.5052]
[1752230862881,1.97893643,118090.0,118080.0,0.5052]
[1752230863881,1.84993643,118090.0,118080.0,0.5052]
[1752230864127,1.97893643,118090.0,118080.0,0.5052]
[1752230864305,1.84993643,118090.0,118080.0,0.5052]
[1752230864870,1.97893643,118090.0,118080.0,0.5052]
[1752230865104,1.97893643,118090.0,118080.0,0.52104853]
[1752230866051,1.97893643,118090.0,118080.0,0.5052]
[1752230866231,1.97893643,118090.0,118080.0,0.52105625]
[1752230866898,1.84993643,118090.0,118080.0,0.52105625]
[1752230867108,1.97893643,118090.0,118080.0,0.52105625]
[1752230867316,1.84993643,118090.0,118080.0,0.52105625]
[1752230867689,0.97164965,118090.0,118080.0,0.55781625]
[1752230867876,0.94669578,118090.0,118080.0,0.55781625]
[1752230868087,1.07569578,118090.0,118080.0,0.55781625]
[1752230869304,0.94569578,118090.0,118080.0,0.55781625]
[1752230869508,1.07469578,118090.0,118080.0,0.55781625]
[1752230869925,1.07269578,118090.0,118080.0,0.55781625]
[1752230870673,1.07369578,118090.0,118080.0,0.55781625]
[1752230870880,1.01872065,118090.0,118080.0,0.55781625]
[1752230872704,0.88972065,118090.0,118080.0,0.55781625]
[1752230872912,1.01868065,118090.0,118080.0,0.55781625]
[1752230873317,0.88972065,118090.0,118080.0,0.55781625]
[1752230873522,1.01868065,118090.0,118080.0,0.55781625]
[1752230875755,1.01868065,118090.0,118080.0,0.55981625]
[1752230876460,1.01768065,118090.0,118080.0,0.55981625]
[1752230877441,0.11083893,118090.0,118080.0,1.20702114]
[1752230877655,0.21438993,118090.0,118080.0,0.76913942]
[1752230877860,0.21438993,118090.0,118080.0,0.76067116]
[1752230878067,0.21438993,118090.0,118080.0,0.5743571]
[1752230878639,0.65227165,118090.0,118080.0,0.55981625]
[1752230880451,0.52331165,118090.0,118080.0,0.55981625]
[1752230880671,0.65227165,118090.0,118080.0,0.55981625]
[1752230881890,0.21438993,118090.0,118080.0,0.55981625]
[1752230882097,0.65227165,118090.0,118080.0,0.55981625]
[1752230882430,0.99227165,118090.0,118080.0,0.54201625]
[1752230882645,0.99227165,118090.0,118080.0,0.54001625]
[1752230883251,0.55438993,118090.0,118080.0,0.54001625]
[1752230883549,0.99227165,118090.0,118080.0,0.54001625]
[1752230883702,0.99327165,118090.0,118080.0,0.54001625]
[1752230886173,1.01867665,118090.0,118080.0,0.54001625]
[1752230888742,0.58079493,118090.0,118080.0,0.54001625]
[1752230888945,1.01867665,118090.0,118080.0,0.54001625]
[1752230889652,1.01867665,118090.0,118080.0,0.55661625]
[1752230890308,1.01867665,118090.0,118080.0,0.5565916]
[1752230890832,1.0734875,118090.0,118080.0,0.5565916]
[1752230892445,0.9445275,118090.0,118080.0,0.5565916]
[1752230892653,1.0734475,118090.0,118080.0,0.5565916]
[1752230893071,1.0734475,118090.0,118080.0,0.54076]
[1752230893278,1.0734475,118090.0,118080.0,0.55659833]
[1752230895733,0.58075493,118090.0,118080.0,0.56506716]
[1752230895937,1.0734475,118090.0,118080.0,0.55659833]
[1752230897194,0.93437131,118090.0,118080.0,0.55659833]
[1752230897370,0.57059874,118090.0,118080.0,0.55659833]
[1752230897574,1.03788631,118090.0,118080.0,0.55659833]
[1752230900614,0.54519374,118090.0,118080.0,0.55659833]
[1752230900841,1.03788631,118090.0,118080.0,0.55659833]
[1752230903579,1.03784631,118090.0,118080.0,0.55659833]
[1752230905123,1.06325031,118090.0,118080.0,0.55659833]
[1752230905578,1.55594288,118090.0,118080.0,0.52103833]
[1752230906702,1.06325031,118090.0,118080.0,0.52305833]
[1752230906890,0.57055774,118090.0,118080.0,0.53965833]
[1752230907124,0.57055774,118090.0,118080.0,0.53967907]
[1752230909828,0.44167774,118090.0,118080.0,0.53967907]
[1752230910054,0.57055774,118090.0,118080.0,0.53967907]
[1752230913004,0.57055774,118090.0,118080.0,0.55537907]
[1752230913198,0.56040133,118090.0,118080.0,0.55537907]
[1752230913781,0.97294612,118090.0,118080.0,0.55537907]
[1752230914526,0.99835012,118090.0,118080.0,0.55537907]
[1752230915271,0.86947012,118090.0,118080.0,0.55537907]
[1752230915484,0.99835012,118090.0,118080.0,0.55537907]
[1752230917765,0.99835012,118090.0,118080.0,0.55037907]
[1752230920180,0.99835012,118090.0,118080.0,0.55037996]
[1752230920357,0.99835012,118090.0,118080.0,0.53467996]
[1752230921220,0.99835012,118090.0,118080.0,0.51807996]
[1752230921436,1.02965012,118090.0,118080.0,0.51285996]
[1752230922513,1.01415012,118090.0,118080.0,0.51285996]
[1752230923051,1.00399339,118090.0,118080.0,0.51285996]
[1752230923899,1.01999339,118090.0,118080.0,0.51285996]
[1752230924262,1.00399339,118090.0,118080.0,0.51285996]
[1752230924732,0.98819339,118090.0,118080.0,0.51285996]
[1752230925819,1.50854218,118090.0,118080.0,0.51285996]
[1752230926041,1.07059339,118090.0,118080.0,0.51285996]
[1752230931863,1.06959339,118090.0,118080.0,0.51285996]
[1752230932220,1.06959339,118090.0,118080.0,0.5128509]
[1752230934356,1.59297211,118090.0,118080.0,0.5128509]
[1752230936361,1.15502332,118090.0,118080.0,0.5128509]
[1752230938482,1.59297211,118090.0,118080.0,0.5128509]
[1752230940970,1.50754218,118090.0,118080.0,0.497]
[1752230941180,1.50754218,118090.0,118080.0,0.5128436]
[1752230943536,1.06959339,118090.0,118080.0,0.5128436]
[1752230944948,1.61732332,118090.0,118080.0,0.5128436]
[1752230948099,1.61732332,118090.0,118080.0,0.51284632]
[1752230948786,1.70275325,118090.0,118080.0,0.51284632]
[1752230949804,1.61732332,118090.0,118080.0,0.51284632]
[1752230952869,1.61732332,118090.0,118080.0,0.5043811]
[1752230953087,1.61732332,118090.0,118080.0,0.49591588]
[1752230953546,1.61732332,118090.0,118080.0,0.48745066]
[1752230953978,1.61732332,118090.0,118080.0,0.47898544]
[1752230954428,1.61732332,118090.0,118080.0,0.47052022]
[1752230954662,1.61732332,118090.0,118080.0,0.462055]
[1752230954875,0.6316446,118090.0,118080.0,0.462055]
[1752230955055,1.5078215,118090.0,118080.0,0.45358978]
[1752230955547,0.6316446,118090.0,118080.0,0.44512456]
[1752230955803,1.06973305,118090.0,118080.0,0.44512456]
[1752230956065,1.06973305,118090.0,118080.0,0.43665934]
[1752230956310,1.06973305,118090.0,118080.0,0.42819412]
[1752230956518,1.5078215,118090.0,118080.0,0.42819412]
[1752230957778,2.5078215,118090.0,118080.0,0.42819412]
[1752230960462,2.4919215,118090.0,118080.0,0.42819412]
[1752230960876,2.03825305,118090.0,118080.0,0.42819412]
[1752230961081,2.03825305,118090.0,118080.0,0.4197289]
[1752230961501,2.03825305,118090.0,118080.0,0.41449368]
[1752230961705,2.03825305,118090.0,118080.0,0.43209368]
[1752230961936,2.03825305,118090.0,118080.0,0.42362846]
[1752230962620,2.03825305,118090.0,118080.0,0.40802846]
[1752230962827,1.4213646,118090.0,118080.0,0.43932846]
[1752230963039,1.6001646,118090.0,118080.0,0.43932846]
[1752230963250,2.03825305,118090.0,118080.0,0.43932846]
[1752230964312,1.90945305,118090.0,118080.0,0.43932846]
[1752230964523,2.03825305,118090.0,118080.0,0.43932846]
[1752230968395,1.4213646,118090.0,118080.0,0.43932846]
[1752230968618,1.2101646,118090.0,118080.0,0.60870515]
[1752230968813,1.2101646,118090.0,118080.0,0.43932846]
[1752230969019,1.98825305,118090.0,118080.0,0.44779729]
[1752230969228,1.98825305,118090.0,118080.0,0.43932846]
[1752230969426,1.98825305,118090.0,118080.0,0.45626605]
[1752230969626,1.98825305,118090.0,118080.0,0.44779729]
[1752230970210,1.98825305,118090.0,118080.0,0.43932846]
[1752230971777,1.85945305,118090.0,118080.0,0.43932846]
[1752230972022,1.5501646,118090.0,118080.0,0.44779729]
[1752230972235,1.98825305,118090.0,118080.0,0.43932846]
[1752230972433,1.85945305,118090.0,118080.0,0.43932846]
[1752230972645,1.98825305,118090.0,118080.0,0.43932846]
[1752230972864,1.85945305,118090.0,118080.0,0.43932846]
[1752230973277,1.98825305,118090.0,118080.0,0.43932846]
[1752230973701,1.85945305,118090.0,118080.0,0.43932846]
[1752230973839,1.98825305,118090.0,118080.0,0.44779729]
[1752230974267,1.85945305,118090.0,118080.0,0.43932846]
[1752230974564,1.98825305,118090.0,118080.0,0.43932846]
[1752230979003,1.5501646,118090.0,118080.0,0.43932846]
[1752230979211,1.98825305,118090.0,118080.0,0.43932846]
[1752230980853,1.4213646,118090.0,118080.0,0.61717398]
[1752230981059,2.04280852,118090.0,118080.0,0.61717398]
[1752230981295,2.04280852,118090.0,118080.0,0.43932846]
[1752230982228,2.04280852,118090.0,118080.0,0.61717398]
[1752230982792,2.04280852,118090.0,118080.0,0.62564274]
[1752230983210,2.04280852,118090.0,118080.0,0.63411135]
[1752230983582,2.04280852,118090.0,118080.0,0.62564274]
[1752230984057,1.91400852,118090.0,118080.0,0.62564274]
[1752230984268,2.04280852,118090.0,118080.0,0.63411143]
[1752230984476,2.04280852,118090.0,118080.0,0.62564274]
[1752230984649,2.04280852,118090.0,118080.0,0.63411143]
[1752230984874,2.04280852,118090.0,118080.0,0.62564274]
[1752230985332,2.04280852,118090.0,118080.0,0.63411135]
[1752230985832,2.04280852,118090.0,118080.0,0.64257989]
[1752230986244,1.91400852,118090.0,118080.0,0.64257989]
[1752230986746,1.4213646,118090.0,118080.0,0.66557842]
[1752230986945,1.0162479,118090.0,118080.0,1.90842576]
[1752230987175,1.0162479,118090.0,118080.0,1.41578184]
[1752230987345,1.0,118090.0,118080.0,1.39994631]
[1752230987706,1.0,118090.0,118080.0,1.41578089]
[1752230988646,1.0,118090.0,118080.0,1.41678089]
[1752230988844,1.0,118090.0,118080.0,0.92413697]
[1752230989046,1.0,118090.0,118080.0,0.92313697]
[1752230989250,1.0,118090.0,118080.0,1.36190188]
[1752230990643,1.0,118090.0,118080.0,1.36490188]
[1752230992130,1.0,118090.0,118080.0,1.36190188]
[1752230992281,1.0,118090.0,118080.0,0.92713697]
[1752230993598,1.12876,118090.0,118080.0,0.66957697]
[1752230993808,1.12876,118090.0,118080.0,1.23610188]
[1752230994385,1.12876,118090.0,118080.0,0.79833697]
[1752230997004,0.33042303,118080.0,118070.0,0.60715563]
[1752230997213,0.33042303,118080.0,118070.0,0.62409393]
[1752230997418,0.33042303,118080.0,118070.0,0.62618393]
[1752230998389,0.33042303,118080.0,118070.0,0.75794393]
[1752230998785,0.33042303,118080.0,118070.0,0.76094393]
[1752230999108,0.33042303,118080.0,118070.0,0.77863478]
[1752231000010,0.33042303,118080.0,118070.0,0.81023478]
[1752231000421,0.33042303,118080.0,118070.0,0.24370987]
[1752231000628,0.33042303,118080.0,118070.0,0.35792902]
[1752231001513,0.33042303,118080.0,118070.0,0.35492902]
[1752231001923,0.33042303,118080.0,118070.0,0.35592902]
[1752231002337,0.45918303,118080.0,118070.0,0.35592902]
[1752231002740,0.45918303,118080.0,118070.0,0.35292902]
[1752231004005,0.45918303,118080.0,118070.0,0.35288902]
[1752231004729,0.45918303,118080.0,118070.0,0.33648902]
[1752231005132,0.33042303,118080.0,118070.0,0.33648902]
[1752231005337,0.33042303,118080.0,118070.0,0.35158902]
[1752231007139,0.44898704,118080.0,118070.0,0.35158902]
[1752231008369,0.84898704,118080.0,118070.0,0.35158902]
[1752231008575,0.72026704,118080.0,118070.0,0.35158902]
[1752231008706,0.84898704,118080.0,118070.0,0.35158902]
[1752231008909,0.84898704,118080.0,118070.0,0.78935393]
[1752231009116,0.84898704,118080.0,118070.0,0.80519658]
[1752231012411,0.84898704,118080.0,118070.0,0.36743167]
[1752231014255,0.84898704,118080.0,118070.0,0.35158902]
[1752231014481,0.84898704,118080.0,118070.0,0.36743843]
[1752231016077,0.84898704,118080.0,118070.0,0.80520334]
[1752231016885,0.84898704,118080.0,118070.0,0.36743843]
[1752231017089,0.82507796,118080.0,118070.0,0.3674407]
[1752231017948,0.82507796,118080.0,118070.0,0.35158902]
[1752231019548,0.82507796,118080.0,118070.0,0.36744152]
[1752231020165,0.29635796,118080.0,118070.0,0.36744152]
[1752231021382,0.29635796,118080.0,118070.0,0.35234152]
[1752231021588,0.38389789,118080.0,118070.0,0.1968027]
[1752231021784,0.9842628,118080.0,118070.0,0.21165129]
[1752231021986,0.9842628,118080.0,118070.0,0.22012033]
[1752231022188,0.9842628,118080.0,118070.0,0.21165129]
[1752231022443,0.9842628,118080.0,118070.0,0.22858945]
[1752231022709,0.54649789,118080.0,118070.0,0.21912041]
[1752231022992,0.94649789,118080.0,118070.0,0.21912041]
[1752231023209,0.94649789,118080.0,118070.0,0.22758945]
[1752231024694,1.79153486,118080.0,118070.0,0.0158525]
[1752231024921,1.76202771,118080.0,118070.0,0.0158525]
[1752231025089,1.3496718,118080.0,118070.0,0.0158525]
[1752231026564,1.78843671,118080.0,118070.0,0.0158525]
[1752231026689,1.78943671,118080.0,118070.0,0.0158525]
[1752231026932,1.3516718,118080.0,118070.0,0.0158525]
[1752231030685,1.2229518,118080.0,118070.0,0.0471525]
[1752231030913,1.3516718,118080.0,118070.0,0.0471525]
[1752231033648,1.2229518,118080.0,118070.0,0.0471525]
[1752231033860,1.3516718,118080.0,118070.0,0.0471525]
[1752231038905,1.78943671,118080.0,118070.0,0.0471525]
[1752231039338,1.3516718,118080.0,118070.0,0.0471525]
[1752231040542,1.82247676,118080.0,118070.0,0.0471525]
[1752231041148,1.38471185,118080.0,118070.0,0.0471525]
[1752231041347,1.3516718,118080.0,118070.0,0.0471525]
[1752231041564,1.3485718,118080.0,118070.0,0.0471525]
[1752231042955,1.78633671,118080.0,118070.0,0.0471525]
[1752231043734,1.3485718,118080.0,118070.0,0.04712627]
[1752231044813,0.91080689,118080.0,118070.0,0.04712627]
[1752231045023,1.89643279,118080.0,118070.0,0.04712627]
[1752231046109,1.86643279,118080.0,118070.0,0.01582627]
[1752231060526,1.86643279,118080.0,118070.0,0.01586954]
[1752231072861,2.19631868,118080.0,118070.0,0.01586954]
[1752231074188,2.16643279,118080.0,118070.0,0.01586954]
[1752231074588,1.18080689,118080.0,118070.0,0.01586954]
[1752231074791,2.16643279,118080.0,118070.0,0.01586954]
[1752231078043,2.16639279,118080.0,118070.0,0.01586954]
[1752231083221,2.03771279,118080.0,118070.0,0.01586954]
[1752231083453,2.16639279,118080.0,118070.0,0.01586954]
[1752231084164,2.2076926,118080.0,118070.0,0.01586954]
[1752231085143,2.16639279,118080.0,118070.0,0.01586954]
[1752231087355,2.16639279,118080.0,118070.0,0.01586473]
[1752231091184,2.16639279,118080.0,118060.0,0.18834526]
[1752231091185,0.74020618,118070.0,118060.0,0.19681531]
[1752231091405,0.95632611,118070.0,118060.0,0.20735529]
[1752231091615,0.95632611,118070.0,118060.0,0.21057529]
[1752231091795,0.98173711,118070.0,118060.0,0.21057529]
[1752231092484,0.98173711,118070.0,118060.0,0.20210531]
[1752231092708,0.98373711,118070.0,118060.0,0.21057529]
[1752231093764,0.98373711,118070.0,118060.0,0.2190452]
[1752231094238,0.98373711,118070.0,118060.0,0.21057529]
[1752231095147,0.98373711,118070.0,118060.0,0.21904505]
[1752231095370,0.98373711,118070.0,118060.0,0.2190452]
[1752231095583,0.98373711,118070.0,118060.0,0.21057501]
[1752231096028,0.36023416,118070.0,118060.0,0.25144477]
[1752231096260,0.48891416,118070.0,118060.0,0.25144477]
[1752231096490,0.98172711,118070.0,118060.0,0.25144477]
[1752231099552,0.60565388,118070.0,118060.0,0.17345649]
[1752231099756,0.24152093,118070.0,118060.0,0.19237637]
[1752231099990,0.73433388,118070.0,118060.0,0.19237637]
[1752231100256,0.73433388,118070.0,118060.0,0.20084628]
[1752231101064,0.24152093,118070.0,118060.0,0.20931626]
[1752231101259,0.73433388,118070.0,118060.0,0.21778631]
[1752231102519,0.70892288,118070.0,118060.0,0.23655631]
[1752231103115,0.70892288,118070.0,118060.0,0.2524173]
[1752231104149,0.70892288,118070.0,118060.0,0.23655631]
[1752231104331,0.70892288,118070.0,118060.0,0.25241647]
[1752231105900,0.73433088,118070.0,118060.0,0.25241647]
[1752231106105,0.24151793,118070.0,118060.0,0.25241647]
[1752231106305,0.73433088,118070.0,118060.0,0.25241647]
[1752231106914,0.73433088,118070.0,118060.0,0.24984647]
[1752231109185,0.11283793,118070.0,118060.0,0.74522942]
[1752231109598,0.027408,118070.0,118060.0,0.75977027]
[1752231110078,0.01365452,118070.0,118060.0,0.75977027]
[1752231110745,1e-08,118070.0,118060.0,0.75977027]
[1752231111230,1e-08,118070.0,118060.0,0.76077027]
[1752231111671,0.13064,118090.0,118070.0,0.1693781]
[1752231111885,0.002,118090.0,118080.0,0.66218964]
[1752231112315,0.002,118090.0,118080.0,0.68759527]
[1752231112956,0.004,118090.0,118080.0,0.68759527]
[1752231113379,0.002,118090.0,118080.0,0.68759527]
[1752231113586,0.004,118090.0,118080.0,0.68759527]
[1752231114012,0.005,118090.0,118080.0,0.68759527]
[1752231114829,0.005,118090.0,118080.0,0.71849527]
[1752231115015,0.005,118090.0,118080.0,0.72957839]
[1752231116650,0.005,118090.0,118080.0,0.71849527]
[1752231116888,0.005,118090.0,118080.0,0.22568232]
[1752231117115,0.49781295,118090.0,118080.0,0.22568232]
[1752231119045,0.49781295,118090.0,118080.0,0.23662763]
[1752231119469,0.49781295,118090.0,118080.0,0.22568232]
[1752231120310,0.49781295,118090.0,118080.0,0.21108232]
[1752231120457,1.49781295,118090.0,118080.0,0.21108232]
[1752231121640,1.48765759,118090.0,118080.0,0.21108232]
[1752231123411,1.48765759,118090.0,118080.0,0.19478232]
[1752231123607,1.49077759,118090.0,118080.0,0.19478232]
[1752231123827,1.49077759,118090.0,118080.0,0.21059827]
[1752231125032,1.61032752,118090.0,118080.0,0.21059827]
[1752231125878,1.61032752,118090.0,118080.0,0.21259827]
[1752231126417,1.10676993,118090.0,118080.0,0.21259827]
[1752231126608,1.59958288,118090.0,118080.0,0.21259827]
[1752231126809,1.59958288,118090.0,118080.0,0.21359827]
[1752231128782,2.10809583,118090.0,118080.0,0.2051298]
[1752231128989,2.10809583,118090.0,118080.0,0.19666133]
[1752231129399,2.10809583,118090.0,118080.0,0.20512994]
[1752231129589,2.10809583,118090.0,118080.0,0.18619264]
[1752231129794,2.10809583,118090.0,118080.0,0.1936614]
[1752231130014,2.11109583,118090.0,118080.0,0.02428478]
[1752231130248,2.11109583,118090.0,118080.0,0.20213023]
[1752231130470,2.11109583,118090.0,118080.0,0.1936614]
[1752231131076,2.11109583,118090.0,118080.0,0.20213009]
[1752231131531,2.11109583,118090.0,118080.0,0.2190671]
[1752231131652,1.61828288,118090.0,118080.0,0.22753543]
[1752231131875,1.74688288,118090.0,118080.0,0.22753543]
[1752231132579,1.61828288,118090.0,118080.0,0.22753543]
[1752231132858,1.74688288,118090.0,118080.0,0.22753543]
[1752231133404,1.61828288,118090.0,118080.0,0.22753543]
[1752231133609,1.74688288,118090.0,118080.0,0.22753543]
[1752231135920,1.74688288,118090.0,118080.0,0.22153543]
[1752231136552,1.74688288,118090.0,118080.0,0.2130671]
[1752231138301,1.74688288,118090.0,118080.0,0.22153543]
[1752231139339,1.74688288,118090.0,118080.0,0.21306717]
[1752231139530,2.23969583,118090.0,118080.0,0.19612994]
[1752231139740,2.23969583,118090.0,118080.0,0.19613009]
[1752231139945,2.23969583,118090.0,118080.0,0.21306724]
[1752231140151,2.23969583,118090.0,118080.0,0.19613009]
[1752231140586,2.23969583,118090.0,118080.0,0.2045987]
[1752231140944,2.23969583,118090.0,118080.0,0.1876614]
[1752231141067,2.23969583,118090.0,118080.0,0.19613009]
[1752231141497,2.23969583,118090.0,118080.0,0.2045987]
[1752231141705,2.23969583,118090.0,118080.0,0.1876614]
[1752231141912,2.23969583,118090.0,118080.0,0.18766147]
[1752231142317,2.23969583,118090.0,118080.0,0.00981595]
[1752231142318,2.57969583,118090.0,118080.0,0.00981595]
[1752231143840,2.71512576,118090.0,118080.0,0.00981595]
[1752231144046,2.62969583,118090.0,118080.0,0.00981595]
[1752231144291,2.87969583,118090.0,118080.0,0.00981595]
[1752231144435,2.90522583,118090.0,118080.0,0.00981595]
[1752231144831,2.93063383,118090.0,118080.0,0.00981595]
[1752231145071,2.93063383,118090.0,118070.0,0.17785992]
[1752231145266,1.57592583,118080.0,118070.0,0.00846955]
[1752231145494,1.57796583,118080.0,118070.0,0.17786058]
[1752231145695,0.0154,118070.0,118060.0,0.20528443]
[1752231145841,0.74208288,118070.0,118060.0,0.19681481]
[1752231146056,0.74515288,118070.0,118060.0,0.19681481]
[1752231146441,0.25233993,118070.0,118060.0,0.19681481]
[1752231146655,0.74515288,118070.0,118060.0,0.19681481]
[1752231147092,0.74515288,118070.0,118060.0,0.19881481]
[1752231147510,0.74515288,118070.0,118060.0,0.19781481]
[1752231147719,0.74615288,118070.0,118060.0,0.19781481]
[1752231147926,0.74615288,118070.0,118060.0,0.21364958]
[1752231150703,0.74615288,118070.0,118060.0,0.21264564]
[1752231151443,0.72835288,118070.0,118060.0,0.21264564]
[1752231153498,0.21502993,118070.0,118060.0,0.21264564]
[1752231153703,0.1296,118070.0,118060.0,0.24384564]
[1752231154305,0.49588295,118080.0,118070.0,0.19479881]
[1752231154499,0.70991288,118080.0,118070.0,0.21062893]
[1752231154704,1.10991288,118080.0,118070.0,0.21062893]
[1752231155100,0.58131288,118080.0,118070.0,0.21063023]
[1752231155323,0.70991288,118080.0,118070.0,0.21063023]
[1752231155546,0.58131288,118080.0,118070.0,0.21063023]
[1752231155755,0.70991288,118080.0,118070.0,0.21063023]
[1752231156163,0.59721288,118080.0,118070.0,0.21063023]
[1752231156525,0.70991288,118080.0,118070.0,0.21063023]
[1752231156908,0.65502963,118080.0,118070.0,0.21063023]
[1752231158029,0.67172963,118080.0,118070.0,0.21063023]
[1752231158254,0.65502963,118080.0,118070.0,0.21063023]
[1752231159796,0.65502963,118080.0,118070.0,0.21064039]
[1752231160161,0.67400963,118080.0,118070.0,0.21064039]
[1752231161366,0.69160963,118080.0,118070.0,0.21064054]
[1752231161592,0.69160963,118080.0,118070.0,0.19370209]
[1752231161754,0.69160963,118080.0,118070.0,0.20217149]
[1752231162400,0.69160963,118080.0,118070.0,0.19370209]
[1752231162642,0.69660963,118080.0,118070.0,0.20217149]
[1752231163054,0.72201763,118080.0,118070.0,0.20217149]
[1752231163232,0.72201763,118080.0,118070.0,0.21911008]
[1752231163813,0.72201763,118080.0,118070.0,0.21064082]
[1752231164198,0.72201763,118080.0,118070.0,0.20217149]
[1752231164792,0.72201763,118080.0,118070.0,0.21064082]
[1752231165525,0.72201763,118080.0,118070.0,0.21911008]
[1752231166152,0.72201763,118080.0,118070.0,0.22757927]
[1752231166275,0.72201763,118080.0,118070.0,0.21911008]
[1752231166481,0.72201763,118080.0,118070.0,0.22757927]
[1752231167576,0.72201763,118080.0,118070.0,0.22758316]
[1752231167775,0.28408793,118080.0,118070.0,0.22758316]
[1752231167984,0.72201763,118080.0,118070.0,0.22758316]
[1752231168951,0.72201763,118080.0,118070.0,0.22758324]
[1752231169162,0.72201763,118080.0,118070.0,0.21911384]
[1752231170946,0.72201763,118080.0,118070.0,0.20217553]
[1752231171123,0.72201763,118080.0,118070.0,0.21064472]
[1752231171936,0.28408793,118080.0,118070.0,0.21064472]
[1752231172197,0.72201763,118080.0,118070.0,0.21064472]
[1752231172920,0.72201763,118080.0,118070.0,0.20217553]
[1752231173346,0.72201763,118080.0,118070.0,0.21064472]
[1752231174084,0.72201763,118080.0,118070.0,0.21911384]
[1752231174655,0.72201763,118080.0,118070.0,0.22758288]
[1752231175080,0.72201763,118080.0,118070.0,0.21911384]
[1752231176059,0.72201763,118080.0,118070.0,0.19370642]
[1752231176580,0.72201763,118080.0,118070.0,0.21064487]
[1752231177183,0.72201763,118080.0,118070.0,0.21911399]
[1752231177558,0.72201763,118080.0,118070.0,0.21064487]
[1752231177964,0.72201763,118080.0,118070.0,0.21911399]
[1752231178397,0.72201763,118080.0,118070.0,0.22758303]
[1752231178624,0.72201763,118080.0,118070.0,0.21912343]
[1752231178819,1.26954315,118080.0,118070.0,0.21065431]
[1752231179169,1.26954315,118080.0,118070.0,0.20218512]
[1752231179292,1.26954315,118080.0,118070.0,0.21065431]
[1752231179761,1.26954315,118080.0,118070.0,0.21912343]
[1752231180529,1.26954315,118080.0,118070.0,0.22759247]
[1752231180944,1.26954315,118080.0,118070.0,0.21912519]
[1752231181349,1.26954315,118080.0,118070.0,0.21065607]
[1752231181552,1.26954315,118080.0,118070.0,0.21912511]
[1752231181933,1.26954315,118080.0,118070.0,0.21065607]
[1752231182172,1.26954315,118080.0,118070.0,0.20218688]
[1752231182401,1.26954315,118080.0,118070.0,0.21912519]
[1752231182601,1.26954315,118080.0,118070.0,0.21065607]
[1752231182741,1.26954315,118080.0,118070.0,0.21912519]
[1752231183151,1.26954315,118080.0,118070.0,0.22759423]
[1752231184184,0.77681554,118080.0,118070.0,0.22759423]
[1752231185796,0.77681554,118080.0,118070.0,0.21912519]
[1752231186025,0.77681554,118080.0,118070.0,0.22759423]
[1752231186260,1.26954315,118080.0,118070.0,0.22759423]
[1752231188656,1.26954315,118080.0,118070.0,0.21173712]
[1752231188793,1.26954315,118080.0,118070.0,0.22759983]
[1752231189339,0.28408793,118080.0,118070.0,0.22759983]
[1752231189559,1.26954315,118080.0,118070.0,0.22759983]
[1752231191381,0.28408793,118080.0,118070.0,0.22759983]
[1752231191631,0.63805808,118080.0,118070.0,0.22759983]
[1752231191802,0.73007808,118080.0,118070.0,0.22934983]
[1752231192254,0.74527808,118080.0,118070.0,0.22934983]
[1752231192844,0.74738808,118080.0,118070.0,0.22934983]
[1752231193226,0.72198008,118080.0,118070.0,0.22934983]
[1752231193423,0.72198008,118080.0,118070.0,0.22759983]
[1752231193659,0.74015008,118080.0,118070.0,0.22759983]
[1752231194268,0.77240017,118070.0,118060.0,0.18660538]